bitfinex-derivatives/quotes_BTCF0:USTF0_20250528
["timestamp","ask_amount","ask_price","bid_price","bid_amount"]
[1748469467773,2.80694768,107490.0,107480.0,0.17921294]
[1748469467972,2.80694768,107490.0,107480.0,0.17921319]
[1748469468161,2.80694768,107490.0,107480.0,0.16612115]
[1748469468466,2.80694768,107490.0,107480.0,0.17921319]
[1748469468865,2.80694768,107490.0,107480.0,0.16612115]
[1748469469172,2.80694768,107490.0,107480.0,0.17921323]
[1748469469368,2.80694768,107490.0,107480.0,0.16612115]
[1748469469670,2.89422064,107490.0,107480.0,0.21857962]
[1748469470463,2.89422064,107490.0,107480.0,0.21857939]
[1748469470664,2.89422064,107490.0,107480.0,0.20548766]
[1748469470864,2.89422064,107490.0,107480.0,0.21858055]
[1748469471261,2.89422064,107490.0,107480.0,0.21858077]
[1748469471456,2.89422064,107490.0,107480.0,0.2185762]
[1748469471869,2.89422064,107490.0,107480.0,0.21853573]
[1748469472061,2.89422064,107490.0,107480.0,0.21854062]
[1748469472260,2.89422064,107490.0,107480.0,0.21854061]
[1748469472562,2.89422064,107490.0,107480.0,0.20544719]
[1748469472762,2.89422064,107490.0,107480.0,0.21853889]
[1748469472969,2.89422064,107490.0,107480.0,0.20544719]
[1748469473663,2.89422064,107490.0,107480.0,0.21854057]
[1748469474059,2.89422064,107490.0,107480.0,0.20544719]
[1748469474761,2.89406064,107490.0,107480.0,0.21854054]
[1748469475074,2.89406064,107490.0,107480.0,0.21854039]
[1748469475971,2.89406064,107490.0,107480.0,0.21854036]
[1748469476169,2.89406064,107490.0,107480.0,0.14309177]
[1748469476368,2.89406064,107490.0,107480.0,0.20544715]
[1748469476763,2.89406064,107490.0,107480.0,0.21854018]
[1748469476963,2.89406064,107490.0,107480.0,0.20544715]
[1748469477274,2.89406064,107490.0,107480.0,0.21854039]
[1748469477463,2.89406064,107490.0,107480.0,0.21854036]
[1748469477869,2.89406064,107490.0,107480.0,0.20544715]
[1748469478172,2.89406064,107490.0,107480.0,0.21854035]
[1748469478372,2.89406064,107490.0,107480.0,0.20544715]
[1748469478566,2.89406064,107490.0,107480.0,0.21854035]
[1748469478763,2.89406064,107490.0,107480.0,0.179167]
[1748469478764,3.01026619,107490.0,107480.0,0.179167]
[1748469479568,3.01026619,107490.0,107480.0,0.23823401]
[1748469480678,3.01026619,107490.0,107480.0,0.23822185]
[1748469480867,3.01026619,107490.0,107480.0,0.2251408]
[1748469481870,2.89406064,107490.0,107480.0,0.20544715]
[1748469482875,2.89406064,107490.0,107480.0,0.21853104]
[1748469483069,2.89406064,107490.0,107480.0,0.20544715]
[1748469483771,2.89406064,107490.0,107480.0,0.2185345]
[1748469483974,2.89406064,107490.0,107480.0,0.2185347]
[1748469484173,2.89406064,107490.0,107480.0,0.21854685]
[1748469484372,2.89406064,107490.0,107480.0,0.2054593]
[1748469484771,2.89406064,107490.0,107480.0,0.21854696]
[1748469485170,2.89406064,107490.0,107480.0,0.20546691]
[1748469485363,2.89406064,107490.0,107480.0,0.21855609]
[1748469485875,2.89406064,107490.0,107480.0,0.20546691]
[1748469486077,2.89406064,107490.0,107480.0,0.21864236]
[1748469486273,2.89398064,107490.0,107480.0,0.21864236]
[1748469487073,2.89398064,107490.0,107480.0,0.21864547]
[1748469487273,2.89398064,107490.0,107480.0,0.20546691]
[1748469487889,2.89398064,107490.0,107480.0,0.21839356]
[1748469488679,2.89398064,107490.0,107480.0,0.21839517]
[1748469489078,2.89398064,107490.0,107480.0,0.2183903]
[1748469489379,2.89398064,107490.0,107480.0,0.12999875]
[1748469489678,2.89398064,107490.0,107480.0,0.18139894]
[1748469490386,2.89398064,107490.0,107480.0,0.18140013]
[1748469490772,3.01018619,107490.0,107480.0,0.20107421]
[1748469491169,3.01018619,107490.0,107480.0,0.2275403]
[1748469491373,3.01018619,107490.0,107480.0,0.24046717]
[1748469492073,3.01018619,107490.0,107480.0,0.2275403]
[1748469492272,3.01018619,107490.0,107480.0,0.24046723]
[1748469492784,3.01018619,107490.0,107480.0,0.2275403]
[1748469493088,3.01018619,107490.0,107480.0,0.20107427]
[1748469493381,3.01018619,107490.0,107480.0,0.24046723]
[1748469493680,3.01018619,107490.0,107480.0,0.18814734]
[1748469493882,3.01018619,107490.0,107480.0,0.2010743]
[1748469494284,2.81687371,107490.0,107480.0,0.18814734]
[1748469494480,3.01018619,107490.0,107480.0,0.18814734]
[1748469494781,3.01018619,107490.0,107480.0,0.2010743]
[1748469494980,3.01018619,107490.0,107480.0,0.18814734]
[1748469495387,3.01018619,107490.0,107480.0,0.2275403]
[1748469495582,3.01018619,107490.0,107480.0,0.16847329]
[1748469495775,2.89398064,107490.0,107480.0,0.16847329]
[1748469496387,2.89398064,107490.0,107480.0,0.18140033]
[1748469496686,2.89398064,107490.0,107480.0,0.16847329]
[1748469498083,2.89398064,107490.0,107480.0,0.14200737]
[1748469498281,2.89398064,107490.0,107480.0,0.18140073]
[1748469498480,2.89398064,107490.0,107480.0,0.18140071]
[1748469498681,2.89398064,107490.0,107480.0,0.18140074]
[1748469498879,2.89398064,107490.0,107480.0,0.18151447]
[1748469499379,2.89398064,107490.0,107480.0,0.18153574]
[1748469499577,2.89398064,107490.0,107480.0,0.1815263]
[1748469499781,2.89398064,107490.0,107480.0,0.18152627]
[1748469500377,2.89398064,107490.0,107480.0,0.18151719]
[1748469500687,2.89398064,107490.0,107480.0,0.16847386]
[1748469500886,2.89398064,107490.0,107480.0,0.18151806]
[1748469501286,2.89398064,107490.0,107480.0,0.18151819]
[1748469502283,2.92291323,107490.0,107480.0,0.14212483]
[1748469502484,2.92291323,107490.0,107480.0,0.14213013]
[1748469502685,2.92291323,107490.0,107480.0,0.1290858]
[1748469503176,2.88815323,107490.0,107480.0,0.1290858]
[1748469503385,2.52735323,107490.0,107480.0,0.1668858]
[1748469503576,2.27240841,107490.0,107480.0,0.20628516]
[1748469503773,2.03040089,107490.0,107480.0,0.20628516]
[1748469503983,2.03040089,107490.0,107480.0,0.27830365]
[1748469503984,2.46572089,107490.0,107480.0,0.27830365]
[1748469504187,2.46572089,107490.0,107480.0,0.2783005]
[1748469504386,1.73312841,107490.0,107480.0,0.26535217]
[1748469504586,2.46272089,107490.0,107480.0,0.62615217]
[1748469504782,1.92344089,107490.0,107480.0,0.62615217]
[1748469504992,1.6656152,107490.0,107480.0,1.28057445]
[1748469505186,1.6656152,107490.0,107480.0,1.45994272]
[1748469505382,2.1009352,107490.0,107480.0,1.40274604]
[1748469505576,1.6656152,107490.0,107480.0,1.40274604]
[1748469505984,2.1009352,107490.0,107480.0,1.40274604]
[1748469506184,2.1009352,107490.0,107480.0,1.40374604]
[1748469507690,2.1009352,107490.0,107480.0,1.40276612]
[1748469507991,2.1009352,107490.0,107480.0,1.40376612]
[1748469508390,2.1009352,107490.0,107480.0,1.40676612]
[1748469508695,2.1009352,107490.0,107480.0,1.4000757]
[1748469508884,2.1009352,107490.0,107480.0,1.47095611]
[1748469509593,2.1008552,107490.0,107480.0,1.47095611]
[1748469510694,2.1008552,107490.0,107480.0,1.4000757]
[1748469510992,2.1008552,107490.0,107480.0,1.20676322]
[1748469512200,2.1008152,107490.0,107480.0,1.02764363]
[1748469513097,2.1008152,107490.0,107480.0,1.21367603]
[1748469513399,2.1008152,107490.0,107480.0,1.02764363]
[1748469513998,2.1008152,107490.0,107480.0,1.21367613]
[1748469514299,2.1008152,107490.0,107480.0,1.40698861]
[1748469514595,2.1008152,107490.0,107480.0,1.2430722]
[1748469514897,2.1008152,107490.0,107480.0,1.3361082]
[1748469515094,2.1008152,107490.0,107480.0,1.37090156]
[1748469515303,2.1008152,107490.0,107480.0,1.40680892]
[1748469515800,2.1008152,107490.0,107480.0,1.33592851]
[1748469515990,2.1008152,107490.0,107480.0,1.14261603]
[1748469516190,1.5616552,107490.0,107480.0,1.14261603]
[1748469516393,2.1006952,107490.0,107480.0,1.22349644]
[1748469516792,2.1006952,107490.0,107480.0,1.15261603]
[1748469516993,1.6655752,107490.0,107480.0,1.34592851]
[1748469517192,2.1006952,107490.0,107480.0,1.34592851]
[1748469517895,2.1006952,107490.0,107480.0,1.41680892]
[1748469518302,1.5616552,107490.0,107480.0,1.41680892]
[1748469518503,2.1006952,107490.0,107480.0,1.41680892]
[1748469519110,1.5616552,107490.0,107480.0,1.41680892]
[1748469519403,2.1006552,107490.0,107480.0,1.41680892]
[1748469519708,1.6655752,107490.0,107480.0,1.41680892]
[1748469520101,2.1006552,107490.0,107480.0,1.41680892]
[1748469520906,2.1006552,107490.0,107480.0,1.40494]
[1748469521516,2.1006552,107490.0,107480.0,1.01831504]
[1748469521808,2.1006552,107490.0,107480.0,1.40494]
[1748469522202,2.1006152,107490.0,107480.0,1.40494]
[1748469523007,2.1004552,107490.0,107480.0,1.40494]
[1748469523507,1.6654152,107490.0,107480.0,1.29353184]
[1748469523702,2.100455,107490.0,107480.0,1.36434586]
[1748469524100,1.4794,107490.0,107480.0,1.43858869]
[1748469524300,1.37564,107490.0,107480.0,1.64307042]
[1748469524503,1.37564,107490.0,107480.0,1.63118144]
[1748469525101,0.32,107490.0,107480.0,1.63118144]
[1748469525599,0.32,107490.0,107480.0,1.64307042]
[1748469526002,0.32,107490.0,107480.0,1.25644546]
[1748469526311,0.32,107490.0,107480.0,1.61567569]
[1748469526506,0.32,107490.0,107480.0,1.61867569]
[1748469526713,0.32,107490.0,107480.0,1.76421214]
[1748469526898,0.32,107490.0,107480.0,1.61967569]
[1748469527913,0.32,107490.0,107480.0,1.61967461]
[1748469529312,0.32,107490.0,107480.0,1.36967461]
[1748469529609,0.32,107490.0,107480.0,1.35920937]
[1748469530111,0.32,107490.0,107480.0,1.39915423]
[1748469531208,0.85342535,107500.0,107490.0,0.186015]
[1748469531408,1.16202535,107500.0,107490.0,1.11991179]
[1748469531604,0.76520535,107500.0,107490.0,1.17338148]
[1748469532408,0.76520535,107500.0,107490.0,1.17534398]
[1748469533011,0.76520535,107500.0,107490.0,1.17734398]
[1748469534204,0.76520535,107500.0,107490.0,1.18013398]
[1748469535218,0.76520535,107500.0,107490.0,1.22567621]
[1748469536507,0.76520535,107500.0,107490.0,1.13264821]
[1748469536704,0.76520535,107500.0,107490.0,1.02607179]
[1748469536914,0.76520535,107500.0,107490.0,1.06190401]
[1748469537119,0.42753952,107500.0,107490.0,1.37354284]
[1748469537413,0.13000001,107500.0,107490.0,1.73750226]
[1748469540113,0.13000001,107500.0,107490.0,1.74150226]
[1748469540314,0.13000001,107500.0,107490.0,1.77424623]
[1748469541021,0.13000001,107500.0,107490.0,1.73841401]
[1748469541228,0.13000001,107500.0,107490.0,1.58091187]
[1748469541821,0.16810001,107500.0,107490.0,1.65175245]
[1748469543622,0.16810001,107500.0,107490.0,1.69726433]
[1748469544013,0.16810001,107500.0,107490.0,1.62642375]
[1748469544215,0.16810001,107500.0,107490.0,1.59061538]
[1748469544414,0.16810001,107500.0,107490.0,1.62642944]
[1748469544618,0.16810001,107500.0,107490.0,1.77096589]
[1748469545016,0.16810001,107500.0,107490.0,1.96427837]
[1748469546422,0.16810001,107500.0,107490.0,1.77096589]
[1748469546623,0.16810001,107500.0,107490.0,1.66635381]
[1748469549916,0.16810001,107500.0,107490.0,1.96030192]
[1748469552427,0.4131364,107510.0,107500.0,0.1859979]
[1748469552428,0.0385,107510.0,107500.0,0.1859979]
[1748469552628,0.1051555,107520.0,107510.0,0.1859806]
[1748469552629,0.0393955,107520.0,107510.0,0.1859806]
[1748469552819,0.3313955,107520.0,107510.0,1.31446616]
[1748469553018,0.3313955,107520.0,107510.0,1.35346616]
[1748469553315,0.3313955,107520.0,107510.0,1.80066739]
[1748469553316,0.33,107520.0,107510.0,1.80066739]
[1748469553516,0.33,107520.0,107510.0,1.93620766]
[1748469553717,0.33,107520.0,107510.0,2.13922142]
[1748469553918,0.33,107520.0,107510.0,2.00829146]
[1748469554131,0.33,107520.0,107510.0,2.00828931]
[1748469554428,0.33,107520.0,107510.0,2.13906276]
[1748469554813,0.33,107520.0,107510.0,2.00451362]
[1748469555124,0.00013952,107530.0,107520.0,0.1859633]
[1748469555327,0.05013952,107530.0,107520.0,1.29704959]
[1748469555526,1e-08,107530.0,107520.0,1.52082304]
[1748469555720,0.0013952,107540.0,107530.0,0.185946]
[1748469556028,0.0013952,107540.0,107530.0,1.5368856]
[1748469556227,0.0013952,107540.0,107530.0,1.43239629]
[1748469556417,0.0013952,107540.0,107530.0,1.59559547]
[1748469556618,0.07803952,107550.0,107540.0,0.1859287]
[1748469556824,0.40913952,107550.0,107540.0,0.855867]
[1748469557026,0.40913952,107550.0,107540.0,1.16907393]
[1748469557423,0.40913952,107550.0,107540.0,1.1239048]
[1748469557623,0.40913952,107550.0,107540.0,1.0309208]
[1748469558421,0.40913952,107550.0,107540.0,1.03069897]
[1748469558623,0.40913952,107550.0,107540.0,1.03369897]
[1748469558827,0.40913952,107550.0,107540.0,1.03669897]
[1748469559325,0.40913952,107550.0,107540.0,1.02472061]
[1748469560128,0.40913952,107550.0,107540.0,1.07300169]
[1748469560428,0.40913952,107550.0,107540.0,1.20976679]
[1748469560623,0.40913952,107550.0,107540.0,1.19575426]
[1748469561330,0.40913952,107550.0,107540.0,1.09139427]
[1748469561526,0.40913952,107550.0,107540.0,1.09239427]
[1748469561731,0.40913952,107550.0,107540.0,1.03370448]
[1748469562027,0.40913952,107550.0,107540.0,1.03470448]
[1748469562932,0.40913952,107550.0,107540.0,1.03461446]
[1748469565624,0.40913952,107550.0,107540.0,1.0484122]
[1748469566435,0.40913952,107550.0,107540.0,1.0584122]
[1748469566734,0.37013952,107550.0,107540.0,1.22146198]
[1748469566934,0.37013952,107550.0,107540.0,1.36946736]
[1748469567137,0.04109504,107560.0,107550.0,0.1859115]
[1748469567341,0.0398,107570.0,107560.0,0.1858942]
[1748469567537,0.0998,107570.0,107560.0,1.01525734]
[1748469567743,0.1386,107570.0,107560.0,1.01525734]
[1748469568535,0.0988,107570.0,107560.0,1.01525734]
[1748469568936,0.0988,107570.0,107560.0,1.01925734]
[1748469569543,0.06,107570.0,107560.0,1.01925734]
[1748469570441,0.06,107570.0,107560.0,0.9646433]
[1748469571447,0.06,107570.0,107560.0,0.96459493]
[1748469571746,0.06,107570.0,107560.0,0.96737493]
[1748469572342,0.1435,107570.0,107560.0,0.96737493]
[1748469574437,0.1018,107570.0,107560.0,0.96737493]
[1748469575147,0.1396,107570.0,107560.0,0.96737493]
[1748469576252,0.0796,107570.0,107560.0,0.96737493]
[1748469576440,0.3396,107570.0,107560.0,1.07173492]
[1748469577352,0.3396,107570.0,107560.0,0.9937912]
[1748469577953,0.3396,107570.0,107560.0,1.07171438]
[1748469578452,0.3396,107570.0,107560.0,0.9937912]
[1748469581238,0.3396,107570.0,107560.0,1.05240524]
[1748469581654,0.3396,107570.0,107560.0,1.18317869]
[1748469582353,0.3396,107570.0,107560.0,1.09089847]
[1748469584555,0.3396,107570.0,107560.0,1.2943282]
[1748469585055,0.3396,107570.0,107560.0,1.09131444]
[1748469585556,0.3396,107570.0,107560.0,1.2943282]
[1748469585759,0.3396,107570.0,107560.0,1.33955945]
[1748469586556,0.3396,107570.0,107560.0,1.208786]
[1748469588964,0.3396,107570.0,107560.0,1.20880772]
[1748469589960,0.3396,107570.0,107560.0,1.40168376]
[1748469591651,0.3396,107570.0,107560.0,1.33098995]
[1748469592361,0.5254774,107570.0,107560.0,0.78551096]
[1748469592657,0.5254774,107570.0,107560.0,0.76391899]
[1748469592658,0.82170207,107570.0,107560.0,0.76391899]
[1748469592858,0.82170207,107570.0,107560.0,0.94993369]
[1748469593156,0.82170207,107570.0,107560.0,0.92381622]
[1748469593362,0.82170207,107570.0,107560.0,0.91970398]
[1748469593565,0.82170207,107570.0,107560.0,0.91682398]
[1748469593973,0.82170207,107570.0,107560.0,0.73092928]
[1748469594161,0.82170207,107570.0,107560.0,0.91682338]
[1748469594357,0.82170207,107570.0,107560.0,0.91670338]
[1748469594559,0.82170207,107570.0,107560.0,0.91682338]
[1748469595866,0.82170207,107570.0,107560.0,0.72387871]
[1748469596069,0.6287574,107570.0,107560.0,0.72387871]
[1748469596265,0.6287574,107570.0,107560.0,0.77616048]
[1748469596570,0.6287574,107570.0,107560.0,0.72387871]
[1748469597068,0.6287574,107570.0,107560.0,0.72387901]
[1748469597265,0.6287574,107570.0,107560.0,0.71720606]
[1748469597476,0.6287574,107570.0,107560.0,0.71707603]
[1748469597669,0.6287574,107570.0,107560.0,0.71719603]
[1748469600068,0.82179721,107570.0,107560.0,0.71719603]
[1748469600369,1.16476521,107570.0,107560.0,0.09205931]
[1748469600667,1.16476521,107570.0,107560.0,0.07898377]
[1748469600874,1.16476521,107570.0,107560.0,0.03965913]
[1748469601073,1.16476521,107570.0,107560.0,0.03977913]
[1748469601578,1.52556521,107570.0,107560.0,0.03977987]
[1748469601761,1.52556521,107570.0,107560.0,0.0029]
[1748469601962,2.58012521,107570.0,107560.0,0.0029]
[1748469602159,2.58012521,107570.0,107560.0,0.01183761]
[1748469602364,0.1858949,107560.0,107550.0,0.11732349]
[1748469602565,1.86893452,107560.0,107550.0,0.05228879]
[1748469602765,2.21191052,107560.0,107550.0,0.01307726]
[1748469603060,2.21191052,107560.0,107530.0,0.45229171]
[1748469603061,0.1859293,107540.0,107530.0,0.45229171]
[1748469603262,1.24596911,107540.0,107530.0,0.45229171]
[1748469603581,1.32946911,107540.0,107530.0,0.45241171]
[1748469603771,1.32946911,107540.0,107530.0,0.40013153]
[1748469603973,1.32946911,107540.0,107530.0,0.58607793]
[1748469604477,1.32946911,107540.0,107530.0,0.62733724]
[1748469605761,1.32946911,107540.0,107530.0,0.26653724]
[1748469606079,1.1364293,107540.0,107530.0,0.98913724]
[1748469606375,1.1782293,107540.0,107530.0,0.98913724]
[1748469606576,1.37126911,107540.0,107530.0,0.98913724]
[1748469607674,1.39927413,107540.0,107530.0,0.9499664]
[1748469607967,1.39927413,107540.0,107530.0,0.9499666]
[1748469610479,1.39927413,107540.0,107530.0,0.76402]
[1748469610674,1.39927413,107540.0,107530.0,0.9499666]
[1748469611980,1.39927413,107540.0,107530.0,0.76402]
[1748469612176,1.39927413,107540.0,107530.0,0.9499666]
[1748469612384,1.20623432,107540.0,107530.0,0.76402]
[1748469612584,1.39927413,107540.0,107530.0,0.76402]
[1748469614289,1.39927413,107540.0,107530.0,0.9499666]
[1748469614587,1.39927413,107540.0,107530.0,0.76402]
[1748469614887,1.20623432,107540.0,107530.0,0.76402]
[1748469615081,1.39927413,107540.0,107530.0,0.76402]
[1748469616383,1.39927413,107540.0,107530.0,0.80312]
[1748469617779,1.39927413,107540.0,107530.0,0.84223539]
[1748469618180,1.39927413,107540.0,107530.0,1.02818199]
[1748469618990,1.39927413,107540.0,107530.0,1.06638199]
[1748469619790,1.39927413,107540.0,107530.0,1.06641795]
[1748469620289,1.39927413,107540.0,107530.0,1.12537108]
[1748469620783,1.39927413,107540.0,107530.0,1.11869813]
[1748469622488,1.39927413,107540.0,107530.0,1.17765126]
[1748469623688,1.39927413,107540.0,107530.0,1.25606931]
[1748469623891,0.86227413,107540.0,107530.0,1.21691796]
[1748469624092,1.39903413,107540.0,107530.0,1.25613328]
[1748469624291,1.39903413,107540.0,107530.0,1.21691796]
[1748469626586,1.39903413,107540.0,107530.0,1.15796483]
[1748469627888,1.39910322,107540.0,107530.0,1.15796483]
[1748469628388,0.96546322,107540.0,107530.0,1.10568465]
[1748469628582,1.39906322,107540.0,107530.0,1.10568465]
[1748469628786,1.39906322,107540.0,107530.0,1.16463778]
[1748469629886,1.39906322,107540.0,107530.0,1.10568465]
[1748469630597,1.59217212,107540.0,107530.0,0.91973805]
[1748469630796,0.86234322,107540.0,107530.0,1.10568475]
[1748469630986,0.84016322,107540.0,107530.0,1.39565294]
[1748469631301,0.33,107540.0,107530.0,1.83921294]
[1748469631594,0.33,107540.0,107530.0,1.73465315]
[1748469631898,0.33,107540.0,107530.0,1.86530851]
[1748469632102,0.5159294,107540.0,107530.0,1.86530851]
[1748469632399,0.5159294,107540.0,107530.0,1.86730851]
[1748469632784,0.5159294,107540.0,107530.0,1.73765315]
[1748469632988,0.5159294,107540.0,107530.0,1.84396753]
[1748469633588,0.5159294,107540.0,107530.0,1.84384753]
[1748469633994,0.5159294,107540.0,107530.0,1.84376937]
[1748469634999,0.5159294,107540.0,107530.0,1.73859095]
[1748469636102,0.33,107540.0,107530.0,1.73859095]
[1748469636799,0.33,107540.0,107530.0,1.84329194]
[1748469636989,0.5159294,107540.0,107530.0,1.84329194]
[1748469638598,0.5159294,107540.0,107530.0,1.84317194]
[1748469639391,0.5159294,107540.0,107530.0,1.71295219]
[1748469639697,0.5159294,107540.0,107530.0,1.84360755]
[1748469640398,0.5159294,107540.0,107530.0,1.84356755]
[1748469640904,0.33,107540.0,107530.0,1.84356755]
[1748469644595,0.5159295,107540.0,107530.0,1.41016755]
[1748469644900,0.5159295,107540.0,107530.0,1.83352755]
[1748469645509,0.5159295,107540.0,107530.0,1.83351874]
[1748469645709,0.5159295,107540.0,107530.0,1.74514264]
[1748469646007,0.5159295,107540.0,107530.0,1.93817338]
[1748469646815,0.5159295,107540.0,107530.0,1.61444728]
[1748469646998,0.5159295,107540.0,107530.0,1.25193694]
[1748469647305,0.5570295,107540.0,107530.0,1.87840768]
[1748469647501,0.5964295,107540.0,107530.0,1.87840768]
[1748469648011,0.5570295,107540.0,107530.0,1.83308174]
[1748469648207,0.5570295,107540.0,107530.0,1.87838452]
[1748469648806,0.5570295,107540.0,107530.0,1.25203378]
[1748469649003,0.5964295,107540.0,107530.0,1.206731]
[1748469649200,0.5964295,107540.0,107530.0,1.640011]
[1748469649801,0.5964295,107540.0,107530.0,1.25203699]
[1748469650000,0.78946024,107540.0,107530.0,1.25203699]
[1748469650207,0.78946024,107540.0,107530.0,1.206731]
[1748469650511,0.78946024,107540.0,107530.0,1.206611]
[1748469650711,0.5964295,107540.0,107530.0,1.206731]
[1748469650909,0.78946024,107540.0,107530.0,1.129431]
[1748469651296,0.78946024,107540.0,107530.0,1.129311]
[1748469651497,0.78946024,107540.0,107530.0,1.128311]
[1748469651701,0.78946024,107540.0,107530.0,1.1025109]
[1748469651911,0.78946024,107540.0,107530.0,1.17135042]
[1748469652313,1.32562024,107540.0,107530.0,1.17135042]
[1748469653010,1.32562024,107540.0,107530.0,1.24988443]
[1748469653616,1.32562024,107540.0,107530.0,1.10034023]
[1748469653806,1.32562024,107540.0,107530.0,1.10022023]
[1748469654015,1.32562024,107540.0,107530.0,1.10034023]
[1748469655318,1.32562024,107540.0,107530.0,1.1525883]
[1748469655519,1.32562024,107540.0,107530.0,1.1527083]
[1748469655713,1.32562024,107540.0,107530.0,1.14092126]
[1748469655915,1.32562024,107540.0,107530.0,0.95497446]
[1748469656115,1.32562024,107540.0,107530.0,0.91467446]
[1748469656309,1.32562024,107540.0,107530.0,1.10050126]
[1748469656506,1.32562024,107540.0,107530.0,0.91467446]
[1748469656906,1.32562024,107540.0,107530.0,1.10062126]
[1748469657417,1.32562024,107540.0,107530.0,1.09762126]
[1748469657712,1.32562024,107540.0,107530.0,0.91267446]
[1748469658319,1.32562024,107540.0,107530.0,1.09862076]
[1748469658510,1.32562024,107540.0,107530.0,1.03956828]
[1748469658712,1.32562024,107540.0,107530.0,0.91266986]
[1748469658906,1.32562024,107540.0,107530.0,0.87329092]
[1748469659111,1.37562024,107540.0,107530.0,0.87329092]
[1748469659312,1.71861224,107540.0,107530.0,0.51249092]
[1748469659611,1.71861224,107540.0,107530.0,0.40119507]
[1748469659810,1.71861224,107540.0,107530.0,0.46012295]
[1748469660106,1.18245224,107540.0,107530.0,0.09944295]
[1748469660313,1.18245224,107540.0,107530.0,0.40119507]
[1748469660314,0.93245224,107540.0,107530.0,0.40119507]
[1748469660514,1.46857224,107540.0,107530.0,0.40119507]
[1748469661115,2.52349224,107540.0,107530.0,0.40119507]
[1748469661521,2.56189224,107540.0,107530.0,0.40119507]
[1748469662022,2.56189224,107540.0,107530.0,0.40397507]
[1748469663120,2.56189224,107540.0,107530.0,0.0039]
[1748469663318,2.3688615,107540.0,107530.0,0.40397507]
[1748469663518,2.46886024,107540.0,107530.0,0.40397507]
[1748469663719,2.46886024,107540.0,107530.0,0.44497507]
[1748469664024,2.66211742,107540.0,107530.0,0.44497507]
[1748469664415,2.66215742,107540.0,107530.0,0.44497507]
[1748469664916,2.66215742,107540.0,107530.0,0.44493282]
[1748469665928,2.46902199,107540.0,107530.0,0.44493282]
[1748469666823,2.46902199,107540.0,107530.0,0.4057]
[1748469667017,2.46902199,107540.0,107530.0,0.44492885]
[1748469667319,2.2758695,107540.0,107530.0,0.44492885]
[1748469667525,2.46902199,107540.0,107530.0,0.44492885]
[1748469673416,1.93290199,107540.0,107530.0,0.44492885]
[1748469673612,2.46898199,107540.0,107530.0,0.44492885]
[1748469673821,2.46898199,107540.0,107530.0,0.48262885]
[1748469674032,2.46898199,107540.0,107530.0,0.52372885]
[1748469674821,1.93290199,107540.0,107530.0,0.52372885]
[1748469675018,2.46894199,107540.0,107530.0,0.52372885]
[1748469675617,2.46894199,107540.0,107530.0,0.52374426]
[1748469676428,1.93290199,107540.0,107530.0,0.52374426]
[1748469676625,2.46894199,107540.0,107530.0,0.57611223]
[1748469678231,2.40038865,107540.0,107530.0,0.57611223]
[1748469679829,2.40038865,107540.0,107530.0,0.5761693]
[1748469681428,2.40038865,107540.0,107530.0,0.53686797]
[1748469681633,1.86434865,107540.0,107530.0,0.53686797]
[1748469682030,2.45804133,107540.0,107530.0,0.44502527]
[1748469682330,2.45804133,107540.0,107530.0,0.08410527]
[1748469682522,2.45804133,107540.0,107530.0,0.08422527]
[1748469683633,1.92224133,107540.0,107530.0,0.08422527]
[1748469683832,2.45800133,107540.0,107530.0,0.08422527]
[1748469684234,2.45800133,107540.0,107530.0,0.08425927]
[1748469684438,2.33340218,107540.0,107530.0,0.08425927]
[1748469684737,2.45800133,107540.0,107530.0,0.08425927]
[1748469685534,2.45800133,107540.0,107530.0,0.14330715]
[1748469686528,2.54527454,107540.0,107530.0,0.14330715]
[1748469686928,2.00951454,107540.0,107530.0,0.14330715]
[1748469687128,2.54527454,107540.0,107530.0,0.14330715]
[1748469687335,2.54527454,107540.0,107530.0,0.14318715]
[1748469687534,2.54527454,107540.0,107530.0,0.14330715]
[1748469687941,2.66990525,107540.0,107530.0,0.14330715]
[1748469688636,2.66990525,107540.0,107530.0,0.14333132]
[1748469689130,0.0929882,107520.0,107500.0,0.40156943]
[1748469689337,0.1859975,107500.0,107490.0,0.0767]
[1748469689526,0.84522736,107500.0,107490.0,0.0767]
[1748469689731,0.88442736,107500.0,107490.0,0.0767]
[1748469689927,0.79749585,107500.0,107490.0,0.0767]
[1748469690126,0.89912677,107500.0,107490.0,0.07682]
[1748469690331,0.84105475,107500.0,107490.0,0.03792]
[1748469690736,1.89613475,107500.0,107490.0,0.03792]
[1748469691033,1.89613475,107500.0,107490.0,0.00012]
[1748469692128,1.89713475,107500.0,107490.0,0.00012]
[1748469692539,2.0218331,107500.0,107490.0,0.00012]
[1748469692731,2.0217385,107500.0,107490.0,0.00012]
[1748469693237,0.2360147,107490.0,107480.0,0.40392952]
[1748469693541,1.4706714,107490.0,107480.0,0.40404952]
[1748469693840,1.4706714,107490.0,107480.0,0.40392952]
[1748469694036,1.4706714,107490.0,107480.0,0.40404952]
[1748469694431,1.4706714,107490.0,107480.0,0.40392952]
[1748469694627,1.48552975,107490.0,107480.0,0.44352952]
[1748469694829,1.48552975,107490.0,107480.0,0.40332952]
[1748469695235,1.48552975,107490.0,107480.0,0.40344952]
[1748469696137,1.48552975,107490.0,107480.0,0.44514952]
[1748469696542,1.3608314,107490.0,107480.0,0.44514952]
[1748469696838,1.48552975,107490.0,107480.0,0.40344952]
[1748469697144,1.48552975,107490.0,107480.0,0.00012]
[1748469698054,0.1860321,107480.0,107470.0,0.48043952]
[1748469698248,0.82003045,107480.0,107470.0,0.44273952]
[1748469698839,0.84072683,107480.0,107470.0,0.44273952]
[1748469700833,0.84072683,107480.0,107470.0,2e-08]
[1748469701036,0.1860493,107470.0,107460.0,1e-07]
[1748469701338,0.1861185,107430.0,107420.0,0.36219647]
[1748469701639,1.20052366,107430.0,107420.0,0.41545933]
[1748469701839,1.33362366,107430.0,107420.0,0.40189647]
[1748469702040,1.33362366,107430.0,107420.0,0.40201647]
[1748469702239,0.79786366,107430.0,107420.0,0.40062]
[1748469702445,1.33362366,107430.0,107420.0,0.4005]
[1748469702648,1.33362366,107430.0,107420.0,0.4055]
[1748469702946,0.79786366,107430.0,107420.0,0.40562]
[1748469703144,1.33362366,107430.0,107420.0,0.40562]
[1748469703338,1.34757799,107430.0,107420.0,0.41922097]
[1748469703538,1.34757799,107430.0,107420.0,0.40562]
[1748469704147,1.34757799,107430.0,107420.0,0.41062]
[1748469704445,0.81181799,107430.0,107420.0,0.41062]
[1748469704637,1.34761799,107430.0,107420.0,0.45102]
[1748469704836,0.42395433,107430.0,107420.0,0.6371559]
[1748469705040,0.01395433,107430.0,107420.0,1.04540974]
[1748469705246,0.33700491,107440.0,107430.0,0.1861186]
[1748469705549,0.73353081,107440.0,107430.0,0.5973186]
[1748469705840,0.73353081,107440.0,107430.0,0.61054377]
[1748469706041,0.35153621,107440.0,107430.0,1.1897953]
[1748469706244,0.00139651,107460.0,107450.0,0.1860841]
[1748469706553,0.45746331,107460.0,107450.0,1.07648245]
[1748469706743,0.45746331,107460.0,107450.0,1.08922033]
[1748469706940,0.45746331,107460.0,107450.0,1.07648245]